{"text_format":"1","workbook":"xlsx","n_sheets":14,"sheets":["Table3ChartForm","Table3DaystoDecisionGroups","Table4_DecisionbySummaryInst","Table5_IndRequests","Table5A_indrequetststime","Tables6&7New_AvgDTD_byLevelDTyp","Table12_AllRequestsAppendixA","Table11_DisclosureGrade","TableF1_federalsection_time","TableF2_federalsectiondisclosur","TableF3_FedSect.ReqCompare","Tables8&9_DataVsDocs","TableF4_letterscompare","Table10_Fees>$50"],"not_rendered":{"charts":2,"images":0,"macros":1,"external_links":0,"defined_names":0,"comments":0,"pivot_tables":0},"unopened":[{"sheet":"Table3ChartForm","index":0,"reason":"not_a_worksheet"}],"bounds":{"document_bytes":16777216,"sheet_cells":100000,"rows_first":2000,"rows_last":500,"rows_between":2000,"halvings":0,"cell_chars":16384,"cell_head_chars":4096},"cells_cut":0,"cells_raw":0,"read":"whole","date_system":"1900"}

{"sheet":"Table3DaystoDecisionGroups","index":1,"n_rows":34,"n_cols":13,"rows_kept":34,"cut":false,"hidden":false,"merged":[]}
["Government body","Total requests filed","Total requests tabulated","10 days or fewer","11 to 20 days","21 to 30 days","31 to 45 days","46 to 60 days","More than 60 days","No decision by audit close","Not tabulated","Within 30 days","More than 30 days/ no decision at audit end"]
["City of Charlottetown",6,6,6,null,null,null,null,null,null,null,1,0]
["City of Edmonton",6,6,null,1,5,null,null,null,null,null,1,0]
["City of Fredericton",6,6,1,3,2,null,null,null,null,null,1,0]
["City of Moncton",6,6,3,2,1,null,null,null,null,null,1,0]
["City of Regina",6,6,3,3,null,null,null,null,null,null,1,0]
["City of Saint John",6,6,6,null,null,null,null,null,null,null,1,0]
["City of St. John's",6,6,4,2,null,null,null,null,null,null,1,0]
["City of Vancouver",6,6,5,1,null,null,null,null,null,null,1,0]
["City of Windsor",6,6,5,null,1,null,null,null,null,null,1,0]
["Halifax Regional Municipality",6,6,4,2,null,null,null,null,null,null,1,0]
["Manitoba government",15,15,null,6,9,null,null,null,null,null,1,0]
["Nfld and Labrador government",15,15,3,4,8,null,null,null,null,null,1,0]
["PE government",15,15,6,7,2,null,null,null,null,null,1,0]
["Ville de Montréal",6,6,2,2,2,null,null,null,null,null,1,0]
["Ville de Québec",6,6,3,3,null,null,null,null,null,null,1,0]
["New Brunswick government",15,15,3,5,5,1,1,null,null,null,0.8666666666666667,0.13333333333333333]
["City of Hamilton",6,6,1,null,4,null,1,null,null,null,0.83333333333333337,0.16666666666666666]
["City of Toronto",6,6,4,null,1,1,null,null,null,null,0.83333333333333337,0.16666666666666666]
["NWT government",15,15,null,2,9,3,null,1,null,null,0.73333333333333328,0.26666666666666666]
["Nova Scotia government",16,14,1,1,8,3,1,null,null,2,0.7142857142857143,0.2857142857142857]
["City of Calgary",6,6,1,1,2,null,null,2,null,null,0.66666666666666663,0.33333333333333331]
["City of Ottawa",6,6,null,2,2,2,null,null,null,null,0.66666666666666663,0.33333333333333331]
["City of Saskatoon",6,6,1,null,3,1,1,null,null,null,0.66666666666666663,0.33333333333333331]
["City of Winnipeg",6,6,null,null,4,null,1,1,null,null,0.66666666666666663,0.33333333333333331]
["Ontario government",15,15,1,2,6,4,null,null,2,null,0.6,0.4]
["Quebec government",15,14,null,3,5,2,1,2,1,1,0.5714285714285714,0.42857142857142855]
["Saskatchewan government",14,14,2,1,5,2,1,3,null,null,0.5714285714285714,0.42857142857142855]
["City of Victoria",6,6,2,null,1,2,1,null,null,null,0.5,0.5]
["BC government",15,15,7,null,null,5,null,2,1,null,0.46666666666666667,0.53333333333333333]
["Yukon government",15,15,1,3,3,null,1,7,null,null,0.46666666666666667,0.53333333333333333]
["Alberta government",15,15,2,2,2,6,1,null,2,null,0.4,0.6]
["Nunavut government",15,13,null,null,5,4,1,3,null,2,0.38461538461538464,0.61538461538461542]
["Federal government",120,119,3,6,23,12,6,30,39,1,0.26890756302521007,0.73109243697478987]

{"sheet":"Table4_DecisionbySummaryInst","index":2,"n_rows":36,"n_cols":12,"rows_kept":36,"cut":false,"hidden":false,"merged":[]}
["Summary Institution","Total requests filed","1Released in Full/Publicly available","2Denied in Part","3Denied in Full","5Fee Estimate","6No Records","No decision by audit close","Percentage disclosedin full","Denied in whole or in part (includes no decision by audit end)","Percentage with fees","Percentage no records"]
["City of Charlottetown",6,5,null,null,null,1,null,0.83333333333333337,0,0,0.16666666666666666]
["City of Edmonton",6,5,null,null,null,1,null,0.83333333333333337,0,0,0.16666666666666666]
["City of Moncton",6,5,null,null,null,1,null,0.83333333333333337,0,0,0.16666666666666666]
["City of Victoria",6,5,1,null,null,null,null,0.83333333333333337,0.16666666666666666,0,0]
["City of Winnipeg",6,5,1,null,null,null,null,0.83333333333333337,0.16666666666666666,0,0]
["Nfld and Labrador government",15,12,1,null,null,2,null,0.8,6.6666666666666666E-2,0,0.13333333333333333]
["BC government",15,11,3,null,null,null,1,0.73333333333333328,0.26666666666666666,0,0]
["Manitoba government",15,11,2,null,1,1,null,0.73333333333333328,0.13333333333333333,6.6666666666666666E-2,6.6666666666666666E-2]
["PE government",15,11,2,null,1,1,null,0.73333333333333328,0.13333333333333333,6.6666666666666666E-2,6.6666666666666666E-2]
["City of Calgary",6,4,1,null,null,1,null,0.66666666666666663,0.16666666666666666,0,0.16666666666666666]
["City of Fredericton",6,4,1,null,null,1,null,0.66666666666666663,0.16666666666666666,0,0.16666666666666666]
["City of Regina",6,4,null,null,1,1,null,0.66666666666666663,0,0.16666666666666666,0.16666666666666666]
["City of Saskatoon",6,4,null,null,1,1,null,0.66666666666666663,0,0.16666666666666666,0.16666666666666666]
["City of St. John's",6,4,1,null,1,null,null,0.66666666666666663,0.16666666666666666,0.16666666666666666,0]
["Halifax Regional Municipality",6,4,1,null,null,1,null,0.66666666666666663,0.16666666666666666,0,0.16666666666666666]
["Nunavut government",15,10,1,2,null,2,null,0.66666666666666663,0.2,0,0.13333333333333333]
["NWT government",15,10,1,1,null,3,null,0.66666666666666663,0.13333333333333333,0,0.2]
["New Brunswick government",15,8,6,null,null,1,null,0.53333333333333333,0.4,0,6.6666666666666666E-2]
["Yukon government",15,8,null,3,null,4,null,0.53333333333333333,0.2,0,0.26666666666666666]
["City of Ottawa",6,3,null,null,3,null,null,0.5,0,0.5,0]
["City of Saint John",6,3,1,null,null,2,null,0.5,0.16666666666666666,0,0.33333333333333331]
["City of Vancouver",6,3,1,null,1,1,null,0.5,0.16666666666666666,0.16666666666666666,0.16666666666666666]
["Saskatchewan government",14,7,4,1,2,null,null,0.5,0.35714285714285715,0.14285714285714285,0]
["Ville de Montréal",6,3,1,1,null,1,null,0.5,0.33333333333333331,0,0.16666666666666666]
["Quebec government",15,6,1,5,null,2,1,0.4,0.46666666666666667,0,0.13333333333333333]
["Nova Scotia government",16,6,6,null,1,3,null,0.375,0.375,6.25E-2,0.1875]
["Alberta government",15,5,2,3,2,1,2,0.33333333333333331,0.46666666666666667,0.13333333333333333,6.6666666666666666E-2]
["City of Toronto",6,2,1,1,null,2,null,0.33333333333333331,0.33333333333333331,0,0.33333333333333331]
["Ontario government",15,5,1,null,5,2,2,0.33333333333333331,0.2,0.33333333333333331,0.13333333333333333]
["Ville de Québec",6,2,3,null,1,null,null,0.33333333333333331,0.5,0.16666666666666666,0]
["City of Windsor",6,1,null,2,3,null,null,0.16666666666666666,0.33333333333333331,0.5,0]
["Federal government",119,20,46,6,null,8,39,0.16806722689075632,0.76470588235294112,0,6.7226890756302518E-2]
["City of Hamilton",6,null,1,null,3,2,null,0,0.16666666666666666,0.5,0.33333333333333331]
[]
["Totals",{"$f":"SUM(B2:B35)","v":428},{"$f":"SUM(C2:C35)","v":196},90,25,26,46,45,{"$f":"C36/B36","v":0.45794392523364486},{"$f":"SUM(D36:E36,H36)/B36","v":0.37383177570093457},{"$f":"F36/B36","v":6.0747663551401869E-2},{"$f":"G36/B36","v":0.10747663551401869}]

{"sheet":"Table5_IndRequests","index":3,"n_rows":22,"n_cols":11,"rows_kept":22,"cut":false,"hidden":false,"merged":[]}
["Level and request","1Released in Full/Publicly available","2Denied in Part","3Denied in Full","5Fee Estimate","6No Records","No decision by audit close","Total tabulated","Percentage released in full or publicly available","Denied in whole or in part (including no decision by audit close)","Other"]
["PROVINCIAL LEAVE",36,1,2,null,null,null,39,0.92307692307692313,7.6923076923076927E-2,0]
["MUNICIPAL LEAVE",17,1,null,1,null,null,19,0.89473684210526316,5.2631578947368418E-2,5.2631578947368418E-2]
["MUNICIPAL TRIPS",17,null,null,2,null,null,19,0.89473684210526316,0,0.10526315789473684]
["MUNICIPAL REQUESTS",13,4,null,2,null,null,19,0.68421052631578949,0.21052631578947367,0.10526315789473684]
["PROVINCIAL TRIPS",25,4,6,2,2,null,39,0.64102564102564108,0.25641025641025639,0.10256410256410256]
["PROVINCIAL HEALTH CARDS",8,null,null,null,5,null,13,0.61538461538461542,0,0.38461538461538464]
["PROVINCIAL JAIL BIRTHS",7,1,null,null,5,null,13,0.53846153846153844,7.6923076923076927E-2,0.38461538461538464]
["MUNICIPAL SPECIFIC",10,1,null,4,4,null,19,0.52631578947368418,5.2631578947368418E-2,0.42105263157894735]
["PROVINCIAL REQUESTS",17,15,2,3,null,2,39,0.4358974358974359,0.48717948717948717,7.6923076923076927E-2]
["MUNICIPAL CORRESPONDENCE",7,5,3,4,null,null,19,0.36842105263157893,0.42105263157894735,0.21052631578947367]
["PROVINCIAL SPECIFIC",13,6,5,3,9,3,39,0.33333333333333331,0.35897435897435898,0.30769230769230771]
["PROVINCIAL REFUGEES",4,3,null,4,1,1,13,0.30769230769230771,0.30769230769230771,0.38461538461538464]
["ALTERNATIVE FEDERAL",1,2,null,null,1,null,4,0.25,0.5,0.25]
["FEDERAL CONTRACTS",6,13,1,null,null,3,23,0.2608695652173913,0.73913043478260865,0]
["FEDERAL CORRESPONDENCE",5,7,2,null,null,10,24,0.20833333333333334,0.79166666666666663,0]
["FEDERAL SPECIFIC",5,7,1,null,2,9,24,0.20833333333333334,0.70833333333333337,8.3333333333333329E-2]
["FEDERAL REQUESTS",3,14,null,null,null,7,24,0.125,0.875,0]
["MUNICIPAL MARRIAGE",2,3,1,1,12,null,19,0.10526315789473684,0.21052631578947367,0.68421052631578949]
["FEDERAL TRUMP",null,3,2,null,5,10,20,0,0.75,0.25]
[]
["Totals",{"$f":"SUM(B2:B21)","v":196},{"$f":"SUM(C2:C21)","v":90},25,26,46,45,428,{"$f":"B22/H22","v":0.45794392523364486},{"$f":"SUM(C22:D22,G22)/H22","v":0.37383177570093457},{"$f":"SUM(E22:F22)/H22","v":0.16822429906542055}]

{"sheet":"Table5A_indrequetststime","index":4,"n_rows":22,"n_cols":12,"rows_kept":22,"cut":false,"hidden":false,"merged":[]}
["Level and request","10 days or fewer","11 to 20 days","21 to 30 days","31 to 45 days","46 to 60 days","More than 60 days","No decision by audit close","Total tabulated","Not tabulated","Within 30 days","More than 30 days/ no decision at audit end"]
["MUNICIPAL MARRIAGE",14,3,2,null,null,null,null,19,null,1,0]
["PROVINCIAL JAIL BIRTHS",3,5,5,null,null,null,null,13,null,1,0]
["MUNICIPAL LEAVE",8,5,5,1,null,null,null,19,null,0.94736842105263153,5.2631578947368418E-2]
["MUNICIPAL REQUESTS",8,4,6,null,null,1,null,19,null,0.94736842105263153,5.2631578947368418E-2]
["MUNICIPAL SPECIFIC",6,4,7,1,null,1,null,19,null,0.89473684210526316,0.10526315789473684]
["MUNICIPAL TRIPS",7,4,5,3,null,null,null,19,null,0.84210526315789469,0.15789473684210525]
["PROVINCIAL HEALTH CARDS",1,3,6,2,null,1,null,13,null,0.76923076923076927,0.23076923076923078]
["PROVINCIAL TRIPS",10,3,15,4,2,5,null,39,null,0.71794871794871795,0.28205128205128205]
["MUNICIPAL CORRESPONDENCE",8,2,3,1,4,1,null,19,null,0.68421052631578949,0.31578947368421051]
["PROVINCIAL SPECIFIC",5,7,14,6,2,1,3,38,1,0.68421052631578949,0.31578947368421051]
["PROVINCIAL LEAVE",3,5,17,7,1,4,null,37,2,0.67567567567567566,0.32432432432432434]
["PROVINCIAL REQUESTS",3,12,7,9,null,5,2,38,1,0.57894736842105265,0.42105263157894735]
["ALTERNATIVE FEDERAL",null,null,2,null,null,2,null,4,null,0.5,0.5]
["PROVINCIAL REFUGEES",1,1,3,2,2,2,1,12,1,0.41666666666666669,0.58333333333333337]
["FEDERAL REQUESTS",1,1,6,1,3,5,7,24,null,0.33333333333333331,0.66666666666666663]
["FEDERAL CONTRACTS",null,1,6,8,1,4,3,23,null,0.30434782608695654,0.69565217391304346]
["FEDERAL TRUMP",2,1,2,1,null,4,10,20,null,0.25,0.75]
["FEDERAL CORRESPONDENCE",null,3,2,1,null,8,10,24,null,0.20833333333333334,0.79166666666666663]
["FEDERAL SPECIFIC",null,null,5,1,2,7,9,24,null,0.20833333333333334,0.79166666666666663]
[]
["Totals",{"$f":"SUM(B2:B21)","v":80},{"$f":"SUM(C2:C21)","v":64},118,48,17,51,45,423,5,{"$f":"SUM(B22:D22)/I22","v":0.61938534278959811},{"$f":"SUM(E22:H22)/I22","v":0.38061465721040189}]

{"sheet":"Tables6&7New_AvgDTD_byLevelDTyp","index":5,"n_rows":25,"n_cols":4,"rows_kept":25,"cut":false,"hidden":false,"merged":[]}
["Table 6"]
["Decision","Average days to decision","Requests"]
["Denied in Part",43.6,89]
["Denied in Full",29.9,25]
["Released in Full/Publicly available",26.1,192]
["Fee Estimate",21.5,26]
["No Records",16,46]
[]
[]
["Table 7"]
["Level","Decision","Average days to decision","Requests"]
["Federal","Denied in Part",56.413043478260867,46]
["Federal","Denied in Full",48.833333333333336,6]
["Federal","Released in Full/Publicly available",42.25,20]
["Provincial","Denied in Part",34.896551724137929,29]
["Provincial","Denied in Full",29.133333333333333,15]
["Provincial","Released in Full/Publicly available",27.735849056603772,106]
["Provincial","No Records",22.954545454545453,22]
["Municipal","Fee Estimate",21.785714285714285,14]
["Provincial","Fee Estimate",21.083333333333332,12]
["Municipal","Denied in Part",19.285714285714285,14]
["Municipal","Released in Full/Publicly available",18.712121212121211,66]
["Federal","No Records",17.125,8]
["Municipal","No Records",5.875,16]
["Municipal","Denied in Full",4,4]

{"sheet":"Table12_AllRequestsAppendixA","index":6,"n_rows":431,"n_cols":9,"rows_kept":431,"cut":false,"hidden":false,"merged":[]}
["Level","Province","Institution","Request","Days to process","Decision","Fee Est","Time ext","id"]
["Federal","Fed","Agriculture and Agri-Food Canada","FEDERAL CORRESPONDENCE",91,"Released In Full",null,"120 days",1]
["Federal","Fed","Agriculture and Agri-Food Canada","FEDERAL CONTRACTS",33,"Denied In Part",null,"",2]
["Federal","Fed","Agriculture and Agri-Food Canada","FEDERAL SPECIFIC",122,"Denied In Part",null,"120 days",3]
["Federal","Fed","Agriculture and Agri-Food Canada","FEDERAL TRUMP",null,"No Decision By Audit Close",null,"150 days",4]
["Federal","Fed","Agriculture and Agri-Food Canada","FEDERAL REQUESTS",29,"Denied In Part",null,"",5]
["Federal","Fed","Canada Border Services Agency","FEDERAL CONTRACTS",36,"Denied In Part",null,"",6]
["Federal","Fed","Canada Border Services Agency","FEDERAL SPECIFIC",null,"No Decision By Audit Close",null,"",7]
["Federal","Fed","Canada Border Services Agency","FEDERAL CORRESPONDENCE",null,"No Decision By Audit Close",null,"",8]
["Federal","Fed","Canada Border Services Agency","FEDERAL TRUMP",null,"No Decision By Audit Close",null,"",9]
["Federal","Fed","Canada Border Services Agency","FEDERAL REQUESTS",null,"No Decision By Audit Close",null,"30 days",10]
["Federal","Fed","Canada Post Corporation","ALTERNATIVE FEDERAL",22,"No Records",null,"",11]
["Federal","Fed","Canada Post Corporation","FEDERAL CONTRACTS",39,"Denied In Full",null,"",12]
["Federal","Fed","Canada Post Corporation","FEDERAL REQUESTS",68,"Denied In Part",null,"30 days",13]
["Federal","Fed","Canada Post Corporation","FEDERAL SPECIFIC",60,"Denied In Full",null,"30 days",14]
["Federal","Fed","Canada Post Corporation","FEDERAL CORRESPONDENCE",61,"Denied In Full",null,"30 days",15]
["Federal","Fed","Canada Revenue Agency","FEDERAL CORRESPONDENCE",91,"Denied In Part",null,"",16]
["Federal","Fed","Canada Revenue Agency","FEDERAL REQUESTS",53,"Denied In Part",null,"30 days",17]
["Federal","Fed","Canada Revenue Agency","FEDERAL SPECIFIC",56,"Released In Full",null,"",18]
["Federal","Fed","Canada Revenue Agency","FEDERAL CONTRACTS",30,"Denied In Part",null,"",19]
["Federal","Fed","Canada Revenue Agency","FEDERAL TRUMP",94,"Denied In Part",null,"60 days",20]
["Federal","Fed","CBC","FEDERAL CORRESPONDENCE",62,"Released In Full",null,"35 days",21]
["Federal","Fed","CBC","ALTERNATIVE FEDERAL",29,"Denied In Part",null,"",22]
["Federal","Fed","CBC","FEDERAL CONTRACTS",49,"Denied In Part",null,"20 days",23]
["Federal","Fed","CBC","FEDERAL REQUESTS",21,"Denied In Part",null,"",24]
["Federal","Fed","CBC","FEDERAL SPECIFIC",25,"No Records",null,"",25]
["Federal","Fed","Canadian Security Intelligence Service","FEDERAL CORRESPONDENCE",35,"Denied In Full",null,"",26]
["Federal","Fed","Canadian Security Intelligence Service","FEDERAL CONTRACTS",35,"Denied In Part",null,"",27]
["Federal","Fed","Canadian Security Intelligence Service","FEDERAL TRUMP",31,"Denied In Full",null,"",28]
["Federal","Fed","Canadian Security Intelligence Service","FEDERAL REQUESTS",43,"Denied In Part",null,"30 days",29]
["Federal","Fed","Canadian Security Intelligence Service","FEDERAL SPECIFIC",93,"Denied In Part",null,"90 days",30]
["Federal","Fed","Communications Security Establishment","FEDERAL REQUESTS",23,"Denied In Part",null,"",31]
["Federal","Fed","Communications Security Establishment","FEDERAL TRUMP",107,"Denied In Part",null,"30 days",32]
["Federal","Fed","Communications Security Establishment","FEDERAL CORRESPONDENCE",14,"Denied In Part",null,"",33]
["Federal","Fed","Communications Security Establishment","FEDERAL CONTRACTS",43,"Denied In Part",null,"",34]
["Federal","Fed","Communications Security Establishment","FEDERAL SPECIFIC",22,"Denied In Part",null,"",35]
["Federal","Fed","Correctional Service Canada","FEDERAL CONTRACTS",null,"Removed from Audit",null,"45 days",36]
["Federal","Fed","Correctional Service Canada","ALTERNATIVE FEDERAL",81,"Denied In Part",null,"30 days",37]
["Federal","Fed","Correctional Service Canada","FEDERAL SPECIFIC",null,"No Decision By Audit Close",null,"30 days",38]
["Federal","Fed","Correctional Service Canada","FEDERAL REQUESTS",null,"No Decision By Audit Close",null,"",39]
["Federal","Fed","Correctional Service Canada","FEDERAL CORRESPONDENCE",null,"No Decision By Audit Close",null,"",40]
["Federal","Fed","Department of Finance Canada","FEDERAL CORRESPONDENCE",60,"Denied In Part",null,"",41]
["Federal","Fed","Department of Finance Canada","FEDERAL SPECIFIC",21,"No Records",null,"",42]
["Federal","Fed","Department of Finance Canada","FEDERAL REQUESTS",23,"Released In Full",null,"",43]
["Federal","Fed","Department of Finance Canada","FEDERAL TRUMP",21,"No Records",null,"",44]
["Federal","Fed","Department of Finance Canada","FEDERAL CONTRACTS",20,"Denied In Part",null,"",45]
["Federal","Fed","Department of National Defence","FEDERAL SPECIFIC",null,"No Decision By Audit Close",null,"",46]
["Federal","Fed","Department of National Defence","FEDERAL REQUESTS",null,"No Decision By Audit Close",null,"",47]
["Federal","Fed","Department of National Defence","FEDERAL CONTRACTS",null,"No Decision By Audit Close",null,"60 days",48]
["Federal","Fed","Department of National Defence","FEDERAL TRUMP",null,"No Decision By Audit Close",null,"",49]
["Federal","Fed","Department of National Defence","FEDERAL CORRESPONDENCE",null,"No Decision By Audit Close",null,"",50]
["Federal","Fed","Employment and Social Development Canada","FEDERAL TRUMP",null,"No Decision By Audit Close",null,"",51]
["Federal","Fed","Employment and Social Development Canada","FEDERAL REQUESTS",null,"No Decision By Audit Close",null,"",52]
["Federal","Fed","Employment and Social Development Canada","FEDERAL SPECIFIC",31,"Released In Full",null,"",53]
["Federal","Fed","Employment and Social Development Canada","FEDERAL CONTRACTS",32,"Denied In Part",null,"",54]
["Federal","Fed","Employment and Social Development Canada","FEDERAL CORRESPONDENCE",107,"Denied In Part",null,"60 days",55]
["Federal","Fed","Environment and Climate Change Canada","FEDERAL TRUMP",null,"No Decision By Audit Close",null,"120 days",56]
["Federal","Fed","Environment and Climate Change Canada","FEDERAL REQUESTS",91,"Denied In Part",null,"60 days",57]
["Federal","Fed","Environment and Climate Change Canada","FEDERAL SPECIFIC",null,"No Decision By Audit Close",null,"60 days",58]
["Federal","Fed","Environment and Climate Change Canada","FEDERAL CORRESPONDENCE",null,"No Decision By Audit Close",null,"60 days",59]
["Federal","Fed","Environment and Climate Change Canada","FEDERAL CONTRACTS",76,"Released In Full",null,"60 days",60]
["Federal","Fed","Fisheries and Oceans Canada","FEDERAL CORRESPONDENCE",29,"Released In Full",null,"",61]
["Federal","Fed","Fisheries and Oceans Canada","FEDERAL CONTRACTS",33,"Released In Full",null,"",62]
["Federal","Fed","Fisheries and Oceans Canada","FEDERAL TRUMP",67,"Denied In Full",null,"90 days",63]
["Federal","Fed","Fisheries and Oceans Canada","FEDERAL SPECIFIC",30,"Released In Full",null,"",64]
["Federal","Fed","Fisheries and Oceans Canada","FEDERAL REQUESTS",30,"Released In Full",null,"",65]
["Federal","Fed","Global Affairs Canada","FEDERAL CONTRACTS",68,"Denied In Part",null,"30 days",66]
["Federal","Fed","Global Affairs Canada","FEDERAL REQUESTS",null,"No Decision By Audit Close",null,"60 days",67]
["Federal","Fed","Global Affairs Canada","FEDERAL SPECIFIC",null,"No Decision By Audit Close",null,"30 days",68]
["Federal","Fed","Global Affairs Canada","FEDERAL CORRESPONDENCE",68,"Denied In Part",null,"",69]
["Federal","Fed","Global Affairs Canada","FEDERAL TRUMP",121,"Denied In Part",null,"30 days",70]
["Federal","Fed","Health Canada","FEDERAL TRUMP",null,"No Decision By Audit Close",null,"120 days",71]
["Federal","Fed","Health Canada","FEDERAL CORRESPONDENCE",null,"No Decision By Audit Close",null,"120 days",72]
["Federal","Fed","Health Canada","FEDERAL CONTRACTS",null,"No Decision By Audit Close",null,"30 days",73]
["Federal","Fed","Health Canada","FEDERAL REQUESTS",null,"No Decision By Audit Close",null,"",74]
["Federal","Fed","Health Canada","FEDERAL SPECIFIC",64,"Released In Full",null,"30 days",75]
["Federal","Fed","Immigration, Refugees and Citizenship Canada","FEDERAL CORRESPONDENCE",null,"No Decision By Audit Close",null,"180 days",76]
["Federal","Fed","Immigration, Refugees and Citizenship Canada","FEDERAL REQUESTS",85,"Denied In Part",null,"30 days",77]
["Federal","Fed","Immigration, Refugees and Citizenship Canada","FEDERAL CONTRACTS",28,"Denied In Part",null,"",78]
["Federal","Fed","Immigration, Refugees and Citizenship Canada","FEDERAL SPECIFIC",86,"Denied In Part",null,"60 days",79]
["Federal","Fed","Immigration, Refugees and Citizenship Canada","FEDERAL TRUMP",null,"No Decision By Audit Close",null,"120 days",80]
["Federal","Fed","Indigenous and Northern Affairs Canada","FEDERAL CONTRACTS",21,"Denied In Part",null,"",81]
["Federal","Fed","Indigenous and Northern Affairs Canada","FEDERAL TRUMP",23,"No Records",null,"",82]
["Federal","Fed","Indigenous and Northern Affairs Canada","FEDERAL SPECIFIC",null,"No Decision By Audit Close",null,"120 days",83]
["Federal","Fed","Indigenous and Northern Affairs Canada","FEDERAL REQUESTS",62,"Denied In Part",null,"15 days",84]
["Federal","Fed","Indigenous and Northern Affairs Canada","FEDERAL CORRESPONDENCE",null,"No Decision By Audit Close",null,"90 days",85]
["Federal","Fed","Parks Canada","FEDERAL SPECIFIC",98,"Denied In Part",null,"60 days",86]
["Federal","Fed","Parks Canada","FEDERAL REQUESTS",9,"Denied In Part",null,"",87]
["Federal","Fed","Parks Canada","FEDERAL CONTRACTS",27,"Released In Full",null,"",88]
["Federal","Fed","Parks Canada","FEDERAL TRUMP",7,"No Records",null,"",89]
["Federal","Fed","Parks Canada","FEDERAL CORRESPONDENCE",19,"Released In Full",null,"",90]
["Federal","Fed","Privy Council Office","FEDERAL CORRESPONDENCE",null,"No Decision By Audit Close",null,"90 days",91]
["Federal","Fed","Privy Council Office","FEDERAL TRUMP",null,"No Decision By Audit Close",null,"180 days",92]
["Federal","Fed","Privy Council Office","FEDERAL CONTRACTS",63,"Denied In Part",null,"30 days",93]
["Federal","Fed","Privy Council Office","FEDERAL SPECIFIC",95,"Denied In Part",null,"120 days",94]
["Federal","Fed","Privy Council Office","FEDERAL REQUESTS",62,"Denied In Part",null,"30 days",95]
["Federal","Fed","Public Service Commission","FEDERAL CONTRACTS",40,"Released In Full",null,"",96]
["Federal","Fed","Public Services and Procurement Canada","FEDERAL TRUMP",15,"No Records",null,"",97]
["Federal","Fed","Public Services and Procurement Canada","FEDERAL REQUESTS",23,"Denied In Part",null,"",98]
["Federal","Fed","Public Services and Procurement Canada","FEDERAL CORRESPONDENCE",30,"Released In Full",null,"",99]
["Federal","Fed","Public Services and Procurement Canada","FEDERAL SPECIFIC",24,"Released In Full",null,"",100]
["Federal","Fed","Royal Canadian Mounted Police","FEDERAL TRUMP",null,"No Decision By Audit Close",null,"",101]
["Federal","Fed","Royal Canadian Mounted Police","FEDERAL SPECIFIC",null,"No Decision By Audit Close",null,"",102]
["Federal","Fed","Royal Canadian Mounted Police","FEDERAL CONTRACTS",null,"No Decision By Audit Close",null,"",103]
["Federal","Fed","Royal Canadian Mounted Police","FEDERAL REQUESTS",null,"No Decision By Audit Close",null,"",104]
["Federal","Fed","Royal Canadian Mounted Police","FEDERAL CORRESPONDENCE",null,"No Decision By Audit Close",null,"",105]
["Federal","Fed","Shared Services Canada","FEDERAL REQUESTS",14,"Denied In Part",null,"",106]
["Federal","Fed","Shared Services Canada","FEDERAL CONTRACTS",30,"Released In Full",null,"",107]
["Federal","Fed","Shared Services Canada","FEDERAL TRUMP",3,"No Records",null,"",108]
["Federal","Fed","Shared Services Canada","FEDERAL SPECIFIC",null,"No Decision By Audit Close",null,"120 days",109]
["Federal","Fed","Shared Services Canada","FEDERAL CORRESPONDENCE",15,"Denied In Part",null,"",110]
["Federal","Fed","Transport Canada","FEDERAL REQUESTS",58,"Released In Full",null,"30 days",111]
["Federal","Fed","Transport Canada","FEDERAL SPECIFIC",null,"No Decision By Audit Close",null,"",112]
["Federal","Fed","Transport Canada","FEDERAL CONTRACTS",32,"Released In Full",null,"",113]
["Federal","Fed","Transport Canada","FEDERAL TRUMP",null,"No Decision By Audit Close",null,"",114]
["Federal","Fed","Transport Canada","FEDERAL CORRESPONDENCE",null,"No Decision By Audit Close",null,"",115]
["Federal","Fed","Via Rail Canada","FEDERAL CORRESPONDENCE",63,"Denied In Part",null,"30 days",116]
["Federal","Fed","Via Rail Canada","FEDERAL CONTRACTS",81,"Denied In Part",null,"30 days",117]
["Federal","Fed","Via Rail Canada","FEDERAL SPECIFIC",57,"Denied In Part",null,"",118]
["Federal","Fed","Via Rail Canada","FEDERAL REQUESTS",50,"Denied In Part",null,"",119]
["Federal","Fed","Via Rail Canada","ALTERNATIVE FEDERAL",60,"Released In Full",null,"",120]
["Municipal","AB","City of Calgary","MUNICIPAL REQUESTS",63,"Released In Full",null,"30 days",121]
["Municipal","AB","City of Calgary","MUNICIPAL TRIPS",25,"Released In Full",null,"",122]
["Municipal","AB","City of Calgary","MUNICIPAL SPECIFIC",22,"Released In Full",null,"",123]
["Municipal","AB","City of Calgary","MUNICIPAL MARRIAGE",7,"No Records",null,"",124]
["Municipal","AB","City of Calgary","MUNICIPAL LEAVE",17,"Released In Full",null,"",125]
["Municipal","AB","City of Calgary","MUNICIPAL CORRESPONDENCE",67,"Denied In Part",null,"30 days",126]
["Municipal","AB","City of Edmonton","MUNICIPAL CORRESPONDENCE",23,"Released In Full",null,"",127]
["Municipal","AB","City of Edmonton","MUNICIPAL MARRIAGE",14,"No Records",null,"",128]
["Municipal","AB","City of Edmonton","MUNICIPAL REQUESTS",29,"Released In Full",null,"",129]
["Municipal","AB","City of Edmonton","MUNICIPAL LEAVE",23,"Released In Full",null,"",130]
["Municipal","AB","City of Edmonton","MUNICIPAL SPECIFIC",27,"Released In Full",null,"",131]
["Municipal","AB","City of Edmonton","MUNICIPAL TRIPS",28,"Released In Full",null,"",132]
["Municipal","BC","City of Vancouver","MUNICIPAL SPECIFIC",18,"Released In Full",null,"",133]
["Municipal","BC","City of Vancouver","MUNICIPAL LEAVE",3,"Released In Full",null,"",134]
["Municipal","BC","City of Vancouver","MUNICIPAL MARRIAGE",0,"No Records",null,"",135]
["Municipal","BC","City of Vancouver","MUNICIPAL CORRESPONDENCE",3,"Fee Estimate",60,"",136]
["Municipal","BC","City of Vancouver","MUNICIPAL REQUESTS",11,"Denied In Part",null,"",137]
["Municipal","BC","City of Vancouver","MUNICIPAL TRIPS",4,"Released In Full",null,"",138]
["Municipal","BC","City of Victoria","MUNICIPAL MARRIAGE",3,"Released In Full",null,"",139]
["Municipal","BC","City of Victoria","MUNICIPAL LEAVE",3,"Denied In Part",null,"",140]
["Municipal","BC","City of Victoria","MUNICIPAL REQUESTS",30,"Released In Full",null,"",141]
["Municipal","BC","City of Victoria","MUNICIPAL SPECIFIC",34,"Released In Full",null,"",142]
["Municipal","BC","City of Victoria","MUNICIPAL TRIPS",44,"Released In Full",null,"",143]
["Municipal","BC","City of Victoria","MUNICIPAL CORRESPONDENCE",47,"Released In Full",null,"",144]
["Municipal","MB","City of Winnipeg","MUNICIPAL REQUESTS",27,"Released In Full",null,"",145]
["Municipal","MB","City of Winnipeg","MUNICIPAL SPECIFIC",62,"Released In Full",null,"30 days",146]
["Municipal","MB","City of Winnipeg","MUNICIPAL MARRIAGE",27,"Released In Full",null,"",147]
["Municipal","MB","City of Winnipeg","MUNICIPAL LEAVE",29,"Released In Full",null,"",148]
["Municipal","MB","City of Winnipeg","MUNICIPAL CORRESPONDENCE",55,"Denied In Part",null,"",149]
["Municipal","MB","City of Winnipeg","MUNICIPAL TRIPS",30,"Released In Full",null,"",150]
["Municipal","NB","City of Fredericton","MUNICIPAL TRIPS",14,"Released In Full",null,"",151]
["Municipal","NB","City of Fredericton","MUNICIPAL SPECIFIC",29,"Denied In Part",null,"",152]
["Municipal","NB","City of Fredericton","MUNICIPAL CORRESPONDENCE",29,"Released In Full",null,"",153]
["Municipal","NB","City of Fredericton","MUNICIPAL LEAVE",11,"Released In Full",null,"",154]
["Municipal","NB","City of Fredericton","MUNICIPAL MARRIAGE",0,"No Records",null,"",155]
["Municipal","NB","City of Fredericton","MUNICIPAL REQUESTS",18,"Released In Full",null,"",156]
["Municipal","NB","City of Moncton","MUNICIPAL REQUESTS",7,"Released In Full",null,"",157]
["Municipal","NB","City of Moncton","MUNICIPAL SPECIFIC",3,"Released In Full",null,"",158]
["Municipal","NB","City of Moncton","MUNICIPAL MARRIAGE",4,"No Records",null,"",159]
["Municipal","NB","City of Moncton","MUNICIPAL TRIPS",11,"Released In Full",null,"",160]
["Municipal","NB","City of Moncton","MUNICIPAL LEAVE",15,"Released In Full",null,"",161]
["Municipal","NB","City of Moncton","MUNICIPAL CORRESPONDENCE",29,"Released In Full",null,"",162]
["Municipal","NB","City of Saint John","MUNICIPAL SPECIFIC",6,"No Records",null,"",163]
["Municipal","NB","City of Saint John","MUNICIPAL MARRIAGE",5,"No Records",null,"",164]
["Municipal","NB","City of Saint John","MUNICIPAL CORRESPONDENCE",7,"Denied In Part",null,"",165]
["Municipal","NB","City of Saint John","MUNICIPAL LEAVE",7,"Released In Full",null,"",166]
["Municipal","NB","City of Saint John","MUNICIPAL REQUESTS",4,"Released In Full",null,"",167]
["Municipal","NB","City of Saint John","MUNICIPAL TRIPS",1,"Released In Full",null,"",168]
["Municipal","NL","City of St. John's","MUNICIPAL MARRIAGE",12,"Denied In Part",null,"",169]
["Municipal","NL","City of St. John's","MUNICIPAL LEAVE",11,"Released In Full",null,"",170]
["Municipal","NL","City of St. John's","MUNICIPAL REQUESTS",3,"Released In Full",null,"",171]
["Municipal","NL","City of St. John's","MUNICIPAL TRIPS",5,"Released In Full",null,"",172]
["Municipal","NL","City of St. John's","MUNICIPAL CORRESPONDENCE",1,"Released In Full",null,"",173]
["Municipal","NL","City of St. John's","MUNICIPAL SPECIFIC",10,"Fee Estimate",500,"",174]
["Municipal","NS","Halifax Regional Municipality","MUNICIPAL CORRESPONDENCE",14,"Denied In Part",null,"",175]
["Municipal","NS","Halifax Regional Municipality","MUNICIPAL LEAVE",0,"Released In Full",null,"",176]
["Municipal","NS","Halifax Regional Municipality","MUNICIPAL TRIPS",10,"Released In Full",null,"",177]
["Municipal","NS","Halifax Regional Municipality","MUNICIPAL SPECIFIC",8,"Released In Full",null,"",178]
["Municipal","NS","Halifax Regional Municipality","MUNICIPAL MARRIAGE",1,"No Records",null,"",179]
["Municipal","NS","Halifax Regional Municipality","MUNICIPAL REQUESTS",18,"Released In Full",null,"",180]
["Municipal","ON","City of Hamilton","MUNICIPAL LEAVE",25,"Nominal Fee",22.9,"",181]
["Municipal","ON","City of Hamilton","MUNICIPAL MARRIAGE",2,"No Records",null,"",182]
["Municipal","ON","City of Hamilton","MUNICIPAL SPECIFIC",28,"No Records",null,"",183]
["Municipal","ON","City of Hamilton","MUNICIPAL CORRESPONDENCE",55,"Fee Estimate",87,"24 days",184]
["Municipal","ON","City of Hamilton","MUNICIPAL REQUESTS",28,"Denied In Part",null,"",185]
["Municipal","ON","City of Hamilton","MUNICIPAL TRIPS",28,"Fee Estimate",30.1,"",186]
["Municipal","ON","City of Ottawa","MUNICIPAL MARRIAGE",20,"Nominal Fee",10,"",187]
["Municipal","ON","City of Ottawa","MUNICIPAL CORRESPONDENCE",44,"Nominal Fee",9.6,"",188]
["Municipal","ON","City of Ottawa","MUNICIPAL LEAVE",23,"Released In Full",null,"",189]
["Municipal","ON","City of Ottawa","MUNICIPAL REQUESTS",29,"Nominal Fee",10,"",190]
["Municipal","ON","City of Ottawa","MUNICIPAL SPECIFIC",18,"Released In Full",null,"",191]
["Municipal","ON","City of Ottawa","MUNICIPAL TRIPS",31,"Released In Full",null,"",192]
["Municipal","ON","City of Toronto","MUNICIPAL SPECIFIC",27,"No Records",null,"",193]
["Municipal","ON","City of Toronto","MUNICIPAL REQUESTS",-1,"Denied In Part",10,"",194]
["Municipal","ON","City of Toronto","MUNICIPAL MARRIAGE",0,"No Records",null,"",195]
["Municipal","ON","City of Toronto","MUNICIPAL TRIPS",10,"Released In Full",null,"",196]
["Municipal","ON","City of Toronto","MUNICIPAL LEAVE",35,"Released In Full",null,"",197]
["Municipal","ON","City of Toronto","MUNICIPAL CORRESPONDENCE",1,"Denied In Full",null,"",198]
["Municipal","ON","City of Windsor","MUNICIPAL MARRIAGE",2,"Denied In Full",null,"",199]
["Municipal","ON","City of Windsor","MUNICIPAL LEAVE",9,"Released In Full",null,"",200]
["Municipal","ON","City of Windsor","MUNICIPAL TRIPS",9,"Nominal Fee",19.2,"",201]
["Municipal","ON","City of Windsor","MUNICIPAL SPECIFIC",28,"Fee Estimate",106.19,"",202]
["Municipal","ON","City of Windsor","MUNICIPAL CORRESPONDENCE",10,"Denied In Full",null,"",203]
["Municipal","ON","City of Windsor","MUNICIPAL REQUESTS",6,"Fee Estimate",1872.6,"",204]
["Municipal","PE","City of Charlottetown","MUNICIPAL REQUESTS",0,"Released In Full",null,"",205]
["Municipal","PE","City of Charlottetown","MUNICIPAL MARRIAGE",0,"No Records",null,"",206]
["Municipal","PE","City of Charlottetown","MUNICIPAL SPECIFIC",1,"Released In Full",null,"",207]
["Municipal","PE","City of Charlottetown","MUNICIPAL LEAVE",8,"Released In Full",null,"",208]
["Municipal","PE","City of Charlottetown","MUNICIPAL CORRESPONDENCE",1,"Released In Full",null,"",209]
["Municipal","PE","City of Charlottetown","MUNICIPAL TRIPS",6,"Released In Full",null,"",210]
["Municipal","QC","Ville de Montréal","MUNICIPAL CORRESPONDENCE",3,"Denied In Full",null,"",211]
["Municipal","QC","Ville de Montréal","MUNICIPAL LEAVE",18,"Released In Full",null,"10 days",212]
["Municipal","QC","Ville de Montréal","MUNICIPAL SPECIFIC",0,"No Records",null,"",213]
["Municipal","QC","Ville de Montréal","MUNICIPAL REQUESTS",20,"Released In Full",null,"10 days",214]
["Municipal","QC","Ville de Montréal","MUNICIPAL TRIPS",23,"Released In Full",null,"10 days",215]
["Municipal","QC","Ville de Montréal","MUNICIPAL MARRIAGE",26,"Denied In Part",null,"10 days",216]
["Municipal","QC","Ville de Québec","MUNICIPAL SPECIFIC",12,"Fee Estimate",189.36,"",217]
["Municipal","QC","Ville de Québec","MUNICIPAL MARRIAGE",5,"Denied In Part",null,"",218]
["Municipal","QC","Ville de Québec","MUNICIPAL CORRESPONDENCE",2,"Denied In Part",null,"",219]
["Municipal","QC","Ville de Québec","MUNICIPAL LEAVE",5,"Released In Full",null,"",220]
["Municipal","QC","Ville de Québec","MUNICIPAL REQUESTS",12,"Denied In Part",null,"",221]
["Municipal","QC","Ville de Québec","MUNICIPAL TRIPS",17,"Released In Full",null,"",222]
["Municipal","SK","City of Regina","MUNICIPAL MARRIAGE",0,"No Records",null,"",223]
["Municipal","SK","City of Regina","MUNICIPAL SPECIFIC",17,"Released In Full",null,"",224]
["Municipal","SK","City of Regina","MUNICIPAL REQUESTS",7,"Released In Full",null,"",225]
["Municipal","SK","City of Regina","MUNICIPAL TRIPS",17,"Released In Full",null,"",226]
["Municipal","SK","City of Regina","MUNICIPAL LEAVE",8,"Released In Full",null,"",227]
["Municipal","SK","City of Regina","MUNICIPAL CORRESPONDENCE",14,"Fee Estimate",338,"",228]
["Municipal","SK","City of Saskatoon","MUNICIPAL SPECIFIC",22,"Fee Estimate",53.16,"",229]
["Municipal","SK","City of Saskatoon","MUNICIPAL CORRESPONDENCE",58,"Released In Full",null,"30 days",230]
["Municipal","SK","City of Saskatoon","MUNICIPAL TRIPS",36,"Released In Full",null,"30 days",231]
["Municipal","SK","City of Saskatoon","MUNICIPAL MARRIAGE",0,"No Records",null,"",232]
["Municipal","SK","City of Saskatoon","MUNICIPAL LEAVE",25,"Released In Full",null,"",233]
["Municipal","SK","City of Saskatoon","MUNICIPAL REQUESTS",22,"Released In Full",null,"",234]
["Provincial","AB","Alberta Education","PROVINCIAL SPECIFIC",27,"Released In Full",null,"",235]
["Provincial","AB","Alberta Education","PROVINCIAL REFUGEES",null,"No Decision By Audit Close",null,"",236]
["Provincial","AB","Alberta Education","PROVINCIAL LEAVE",40,"Denied In Full",null,"",237]
["Provincial","AB","Alberta Education","PROVINCIAL TRIPS",0,"Released In Full",null,"",238]
["Provincial","AB","Alberta Education","PROVINCIAL REQUESTS",42,"Denied In Part",null,"",239]
["Provincial","AB","Alberta Health Services","PROVINCIAL TRIPS",48,"Released In Full",null,"",240]
["Provincial","AB","Alberta Health Services","PROVINCIAL SPECIFIC",null,"No Decision By Audit Close",null,"30 days",241]
["Provincial","AB","Alberta Health Services","PROVINCIAL LEAVE",34,"Released In Full",null,"",242]
["Provincial","AB","Alberta Health Services","PROVINCIAL HEALTH CARDS",41,"Released In Full",null,"",243]
["Provincial","AB","Alberta Health Services","PROVINCIAL REQUESTS",34,"Denied In Part",null,"",244]
["Provincial","AB","Alberta Justice and Solicitor General","PROVINCIAL JAIL BIRTHS",29,"No Records",null,"",245]
["Provincial","AB","Alberta Justice and Solicitor General","PROVINCIAL SPECIFIC",17,"Fee Estimate",804,"",246]
["Provincial","AB","Alberta Justice and Solicitor General","PROVINCIAL TRIPS",8,"Denied In Full",null,"",247]
["Provincial","AB","Alberta Justice and Solicitor General","PROVINCIAL REQUESTS",19,"Fee Estimate",311.5,"",248]
["Provincial","AB","Alberta Justice and Solicitor General","PROVINCIAL LEAVE",33,"Denied In Full",null,"",249]
["Provincial","BC","Ministry of Education","PROVINCIAL REQUESTS",1,"Released In Full",null,"",250]
["Provincial","BC","Ministry of Education","PROVINCIAL TRIPS",0,"Released In Full",null,"",251]
["Provincial","BC","Ministry of Education","PROVINCIAL LEAVE",37,"Released In Full",null,"",252]
["Provincial","BC","Ministry of Education","PROVINCIAL REFUGEES",84,"Denied In Part",null,"30 days",253]
["Provincial","BC","Ministry of Education","PROVINCIAL SPECIFIC",44,"Denied In Part",null,"",254]
["Provincial","BC","Ministry of Health","PROVINCIAL HEALTH CARDS",82,"Released In Full",null,"",255]
["Provincial","BC","Ministry of Health","PROVINCIAL REQUESTS",1,"Released In Full",null,"",256]
["Provincial","BC","Ministry of Health","PROVINCIAL LEAVE",37,"Released In Full",null,"",257]
["Provincial","BC","Ministry of Health","PROVINCIAL TRIPS",0,"Released In Full",null,"",258]
["Provincial","BC","Ministry of Health","PROVINCIAL SPECIFIC",36,"Released In Full",null,"",259]
["Provincial","BC","Ministry of Justice","PROVINCIAL REQUESTS",1,"Released In Full",null,"",260]
["Provincial","BC","Ministry of Justice","PROVINCIAL JAIL BIRTHS",9,"Denied In Part",null,"",261]
["Provincial","BC","Ministry of Justice","PROVINCIAL LEAVE",37,"Released In Full",null,"",262]
["Provincial","BC","Ministry of Justice","PROVINCIAL SPECIFIC",null,"No Decision By Audit Close",null,"40 days",263]
["Provincial","BC","Ministry of Justice","PROVINCIAL TRIPS",0,"Released In Full",null,"",264]
["Provincial","MB","Manitoba Education and Training","PROVINCIAL REQUESTS",14,"Released In Full",null,"",265]
["Provincial","MB","Manitoba Education and Training","PROVINCIAL LEAVE",19,"Released In Full",null,"",266]
["Provincial","MB","Manitoba Education and Training","PROVINCIAL SPECIFIC",28,"Denied In Part",null,"",267]
["Provincial","MB","Manitoba Education and Training","PROVINCIAL TRIPS",22,"Released In Full",null,"",268]
["Provincial","MB","Manitoba Education and Training","PROVINCIAL REFUGEES",25,"Fee Estimate",645,"",269]
["Provincial","MB","Manitoba Health, Seniors and Active Living","PROVINCIAL TRIPS",14,"Released In Full",null,"",270]
["Provincial","MB","Manitoba Health, Seniors and Active Living","PROVINCIAL HEALTH CARDS",21,"No Records",null,"",271]
["Provincial","MB","Manitoba Health, Seniors and Active Living","PROVINCIAL SPECIFIC",19,"Released In Full",null,"",272]
["Provincial","MB","Manitoba Health, Seniors and Active Living","PROVINCIAL LEAVE",15,"Released In Full",null,"",273]
["Provincial","MB","Manitoba Health, Seniors and Active Living","PROVINCIAL REQUESTS",22,"Released In Full",null,"",274]
["Provincial","MB","Manitoba Justice","PROVINCIAL TRIPS",28,"Released In Full",null,"",275]
["Provincial","MB","Manitoba Justice","PROVINCIAL JAIL BIRTHS",28,"Released In Full",null,"",276]
["Provincial","MB","Manitoba Justice","PROVINCIAL SPECIFIC",25,"Denied In Part",null,"",277]
["Provincial","MB","Manitoba Justice","PROVINCIAL LEAVE",17,"Released In Full",null,"",278]
["Provincial","MB","Manitoba Justice","PROVINCIAL REQUESTS",22,"Released In Full",null,"",279]
["Provincial","NB","Justice and Public Safety","PROVINCIAL LEAVE",15,"Released In Full",null,"",280]
["Provincial","NB","Justice and Public Safety","PROVINCIAL SPECIFIC",6,"No Records",null,"",281]
["Provincial","NB","Justice and Public Safety","PROVINCIAL TRIPS",6,"Released In Full",null,"",282]
["Provincial","NB","Justice and Public Safety","PROVINCIAL REQUESTS",18,"Denied In Part",null,"",283]
["Provincial","NB","Justice and Public Safety","PROVINCIAL JAIL BIRTHS",19,"Released In Full",null,"",284]
["Provincial","NB","New Brunswick Education and Early Childhood Development","PROVINCIAL LEAVE",28,"Released In Full",null,"",285]
["Provincial","NB","New Brunswick Education and Early Childhood Development","PROVINCIAL REFUGEES",58,"Denied In Part",null,"30 days",286]
["Provincial","NB","New Brunswick Education and Early Childhood Development","PROVINCIAL SPECIFIC",14,"Released In Full",null,"",287]
["Provincial","NB","New Brunswick Education and Early Childhood Development","PROVINCIAL REQUESTS",14,"Denied In Part",null,"",288]
["Provincial","NB","New Brunswick Education and Early Childhood Development","PROVINCIAL TRIPS",24,"Released In Full",null,"",289]
["Provincial","NB","New Brunswick Health","PROVINCIAL HEALTH CARDS",29,"Released In Full",null,"",290]
["Provincial","NB","New Brunswick Health","PROVINCIAL REQUESTS",42,"Denied In Part",null,"",291]
["Provincial","NB","New Brunswick Health","PROVINCIAL SPECIFIC",29,"Denied In Part",null,"",292]
["Provincial","NB","New Brunswick Health","PROVINCIAL TRIPS",0,"Denied In Part",null,"",293]
["Provincial","NB","New Brunswick Health","PROVINCIAL LEAVE",25,"Released In Full",null,"",294]
["Provincial","NL","Department of Education and Early Childhood Development","PROVINCIAL REFUGEES",22,"Released In Full",null,"",295]
["Provincial","NL","Department of Education and Early Childhood Development","PROVINCIAL TRIPS",29,"Released In Full",null,"",296]
["Provincial","NL","Department of Education and Early Childhood Development","PROVINCIAL SPECIFIC",23,"No Records",null,"",297]
["Provincial","NL","Department of Education and Early Childhood Development","PROVINCIAL REQUESTS",16,"Released In Full",null,"",298]
["Provincial","NL","Department of Education and Early Childhood Development","PROVINCIAL LEAVE",23,"Released In Full",null,"",299]
["Provincial","NL","Department of Health and Community Services","PROVINCIAL HEALTH CARDS",17,"No Records",null,"",300]
["Provincial","NL","Department of Health and Community Services","PROVINCIAL REQUESTS",16,"Released In Full",null,"",301]
["Provincial","NL","Department of Health and Community Services","PROVINCIAL SPECIFIC",26,"Denied In Part",null,"",302]
["Provincial","NL","Department of Health and Community Services","PROVINCIAL TRIPS",4,"Released In Full",null,"",303]
["Provincial","NL","Department of Health and Community Services","PROVINCIAL LEAVE",23,"Released In Full",null,"",304]
["Provincial","NL","Department of Justice and Public safety","PROVINCIAL TRIPS",10,"Released In Full",null,"",305]
["Provincial","NL","Department of Justice and Public safety","PROVINCIAL SPECIFIC",28,"Released In Full",null,"",306]
["Provincial","NL","Department of Justice and Public safety","PROVINCIAL LEAVE",26,"Released In Full",null,"",307]
["Provincial","NL","Department of Justice and Public safety","PROVINCIAL JAIL BIRTHS",3,"Released In Full",null,"",308]
["Provincial","NL","Department of Justice and Public safety","PROVINCIAL REQUESTS",16,"Released In Full",null,"",309]
["Provincial","NS","Nova Scotia Department of Education and Early Childhood Development","PROVINCIAL REQUESTS",29,"Denied In Part",null,"",310]
["Provincial","NS","Nova Scotia Department of Education and Early Childhood Development","PROVINCIAL SPECIFIC",31,"Denied In Part",null,"",311]
["Provincial","NS","Nova Scotia Department of Education and Early Childhood Development","PROVINCIAL LEAVE",29,"Released In Full",null,"",312]
["Provincial","NS","Nova Scotia Department of Education and Early Childhood Development","PROVINCIAL REFUGEES",51,"Denied In Part",null,"30 days",313]
["Provincial","NS","Nova Scotia Department of Education and Early Childhood Development","PROVINCIAL TRIPS",22,"Released In Full",null,"",314]
["Provincial","NS","Nova Scotia Department of Education and Early Childhood Development","PROVINCIAL SPECIFIC",9,"No Records",null,"",315]
["Provincial","NS","Nova Scotia Department of Justice","PROVINCIAL TRIPS",31,"Denied In Part",null,"",316]
["Provincial","NS","Nova Scotia Department of Justice","PROVINCIAL SPECIFIC",16,"Fee Estimate",210,"",317]
["Provincial","NS","Nova Scotia Department of Justice","PROVINCIAL LEAVE",4663,"Released In Full",null,"",318]
["Provincial","NS","Nova Scotia Department of Justice","PROVINCIAL JAIL BIRTHS",21,"No Records",null,"",319]
["Provincial","NS","Nova Scotia Department of Justice","PROVINCIAL REQUESTS",31,"Denied In Part",null,"",320]
["Provincial","NS","Nova Scotia Health and Wellness and Seniors","PROVINCIAL HEALTH CARDS",26,"Released In Full",null,"",321]
["Provincial","NS","Nova Scotia Health and Wellness and Seniors","PROVINCIAL TRIPS",28,"Released In Full",null,"",322]
["Provincial","NS","Nova Scotia Health and Wellness and Seniors","PROVINCIAL REQUESTS",29,"Denied In Part",null,"",323]
["Provincial","NS","Nova Scotia Health and Wellness and Seniors","PROVINCIAL SPECIFIC",28,"No Records",null,"",324]
["Provincial","NS","Nova Scotia Health and Wellness and Seniors","PROVINCIAL LEAVE",4663,"Released In Full",null,"",325]
["Provincial","NT","Education, Culture and Employment","PROVINCIAL LEAVE",27,"Released In Full",null,"",326]
["Provincial","NT","Education, Culture and Employment","PROVINCIAL REQUESTS",27,"Denied In Part",null,"",327]
["Provincial","NT","Education, Culture and Employment","PROVINCIAL SPECIFIC",27,"No Records",null,"",328]
["Provincial","NT","Education, Culture and Employment","PROVINCIAL TRIPS",35,"Released In Full",null,"",329]
["Provincial","NT","Education, Culture and Employment","PROVINCIAL REFUGEES",33,"Released In Full",null,"",330]
["Provincial","NT","Health and Social Services","PROVINCIAL HEALTH CARDS",28,"No Records",null,"",331]
["Provincial","NT","Health and Social Services","PROVINCIAL LEAVE",28,"Released In Full",null,"",332]
["Provincial","NT","Health and Social Services","PROVINCIAL SPECIFIC",28,"Released In Full",null,"",333]
["Provincial","NT","Health and Social Services","PROVINCIAL REQUESTS",37,"Released In Full",null,"",334]
["Provincial","NT","Health and Social Services","PROVINCIAL TRIPS",23,"Denied In Full",null,"",335]
["Provincial","NT","Justice","PROVINCIAL LEAVE",16,"Released In Full",null,"",336]
["Provincial","NT","Justice","PROVINCIAL SPECIFIC",29,"Released In Full",null,"",337]
["Provincial","NT","Justice","PROVINCIAL JAIL BIRTHS",17,"No Records",null,"",338]
["Provincial","NT","Justice","PROVINCIAL REQUESTS",27,"Released In Full",null,"",339]
["Provincial","NT","Justice","PROVINCIAL TRIPS",81,"Released In Full",null,"",340]
["Provincial","NU","Department of Education","PROVINCIAL REQUESTS",32,"Denied In Full",null,"",341]
["Provincial","NU","Department of Education","PROVINCIAL LEAVE",56,"Released In Full",null,"",342]
["Provincial","NU","Department of Education","PROVINCIAL SPECIFIC",34,"Denied In Full",null,"",343]
["Provincial","NU","Department of Education","PROVINCIAL REFUGEES",33,"No Records",null,"",344]
["Provincial","NU","Department of Education","PROVINCIAL TRIPS",77,"Released In Full",null,"",345]
["Provincial","NU","Department of Health","PROVINCIAL SPECIFIC",4661,"Released In Full",null,"",346]
["Provincial","NU","Department of Health","PROVINCIAL HEALTH CARDS",27,"No Records",null,"",347]
["Provincial","NU","Department of Health","PROVINCIAL REQUESTS",4662,"Denied In Part",null,"",348]
["Provincial","NU","Department of Health","PROVINCIAL LEAVE",27,"Released In Full",null,"",349]
["Provincial","NU","Department of Health","PROVINCIAL TRIPS",80,"Released In Full",null,"",350]
["Provincial","NU","Department of Justice","PROVINCIAL SPECIFIC",33,"Released In Full",null,"",351]
["Provincial","NU","Department of Justice","PROVINCIAL JAIL BIRTHS",21,"Released In Full",null,"",352]
["Provincial","NU","Department of Justice","PROVINCIAL LEAVE",22,"Released In Full",null,"",353]
["Provincial","NU","Department of Justice","PROVINCIAL TRIPS",80,"Released In Full",null,"",354]
["Provincial","NU","Department of Justice","PROVINCIAL REQUESTS",22,"Released In Full",null,"",355]
["Provincial","ON","Ontario Ministry of Education","PROVINCIAL LEAVE",31,"Released In Full",null,"",356]
["Provincial","ON","Ontario Ministry of Education","PROVINCIAL SPECIFIC",30,"No Records",null,"",357]
["Provincial","ON","Ontario Ministry of Education","PROVINCIAL REQUESTS",37,"Nominal Fee",10,"",358]
["Provincial","ON","Ontario Ministry of Education","PROVINCIAL TRIPS",37,"Nominal Fee",22,"",359]
["Provincial","ON","Ontario Ministry of Education","PROVINCIAL REFUGEES",13,"Fee Estimate",330,"",360]
["Provincial","ON","Ontario Ministry of Health and Long-Term Care","PROVINCIAL LEAVE",30,"Released In Full",null,"",361]
["Provincial","ON","Ontario Ministry of Health and Long-Term Care","PROVINCIAL TRIPS",30,"Fee Estimate",60,"",362]
["Provincial","ON","Ontario Ministry of Health and Long-Term Care","PROVINCIAL HEALTH CARDS",34,"Released In Full",null,"",363]
["Provincial","ON","Ontario Ministry of Health and Long-Term Care","PROVINCIAL REQUESTS",null,"No Decision By Audit Close",null,"",364]
["Provincial","ON","Ontario Ministry of Health and Long-Term Care","PROVINCIAL SPECIFIC",null,"No Decision By Audit Close",null,"",365]
["Provincial","ON","Ontario Ministry of the Attorney General","PROVINCIAL SPECIFIC",28,"Released In Full",null,"",366]
["Provincial","ON","Ontario Ministry of the Attorney General","PROVINCIAL JAIL BIRTHS",9,"No Records",null,"",367]
["Provincial","ON","Ontario Ministry of the Attorney General","PROVINCIAL REQUESTS",20,"Fee Estimate",125,"",368]
["Provincial","ON","Ontario Ministry of the Attorney General","PROVINCIAL TRIPS",29,"Denied In Part",null,"",369]
["Provincial","ON","Ontario Ministry of the Attorney General","PROVINCIAL LEAVE",26,"Released In Full",null,"",370]
["Provincial","PE","Department of Justice and Public safety","PROVINCIAL SPECIFIC",10,"No Records",null,"",371]
["Provincial","PE","Department of Justice and Public safety","PROVINCIAL JAIL BIRTHS",11,"Released In Full",null,"",372]
["Provincial","PE","Department of Justice and Public safety","PROVINCIAL REQUESTS",17,"Denied In Part",null,"",373]
["Provincial","PE","Department of Justice and Public safety","PROVINCIAL LEAVE",1,"Released In Full",null,"",374]
["Provincial","PE","Department of Justice and Public safety","PROVINCIAL TRIPS",3,"Released In Full",null,"",375]
["Provincial","PE","Education, Early Learning and Culture","PROVINCIAL LEAVE",6,"Released In Full",null,"",376]
["Provincial","PE","Education, Early Learning and Culture","PROVINCIAL REQUESTS",14,"Released In Full",null,"",377]
["Provincial","PE","Education, Early Learning and Culture","PROVINCIAL REFUGEES",24,"Fee Estimate",554,"",378]
["Provincial","PE","Education, Early Learning and Culture","PROVINCIAL SPECIFIC",17,"Released In Full",null,"",379]
["Provincial","PE","Education, Early Learning and Culture","PROVINCIAL TRIPS",17,"Released In Full",null,"",380]
["Provincial","PE","Health PEI","PROVINCIAL TRIPS",24,"Released In Full",null,"",381]
["Provincial","PE","Health PEI","PROVINCIAL LEAVE",1,"Released In Full",null,"",382]
["Provincial","PE","Health PEI","PROVINCIAL REQUESTS",15,"Denied In Part",null,"",383]
["Provincial","PE","Health PEI","PROVINCIAL HEALTH CARDS",10,"Released In Full",null,"",384]
["Provincial","PE","Health PEI","PROVINCIAL SPECIFIC",14,"Released In Full",null,"",385]
["Provincial","QC","Education et enseignement supérieur","PROVINCIAL LEAVE",70,"Released In Full",null,"10 days",386]
["Provincial","QC","Education et enseignement supérieur","PROVINCIAL SPECIFIC",63,"Denied In Full",null,"10 days",387]
["Provincial","QC","Education et enseignement supérieur","PROVINCIAL TRIPS",58,"Denied In Full",null,"10 days",388]
["Provincial","QC","Education et enseignement supérieur","PROVINCIAL REQUESTS",null,"No Decision By Audit Close",null,"10 days",389]
["Provincial","QC","Education et enseignement supérieur","PROVINCIAL REFUGEES",4660,"Released In Full",null,"10 days",390]
["Provincial","QC","Justice Québec","PROVINCIAL REQUESTS",31,"Released In Full",null,"10 days",391]
["Provincial","QC","Justice Québec","PROVINCIAL LEAVE",22,"Released In Full",null,"",392]
["Provincial","QC","Justice Québec","PROVINCIAL JAIL BIRTHS",20,"No Records",null,"",393]
["Provincial","QC","Justice Québec","PROVINCIAL SPECIFIC",27,"No Records",null,"10 days",394]
["Provincial","QC","Justice Québec","PROVINCIAL TRIPS",23,"Denied In Full",null,"10 days",395]
["Provincial","QC","Régie de l’assurance maladie","PROVINCIAL HEALTH CARDS",18,"Released In Full",null,"",396]
["Provincial","QC","Santé et services sociaux Québec","PROVINCIAL SPECIFIC",42,"Denied In Full",null,"10 days",397]
["Provincial","QC","Santé et services sociaux Québec","PROVINCIAL REQUESTS",11,"Denied In Full",null,"",398]
["Provincial","QC","Santé et services sociaux Québec","PROVINCIAL LEAVE",22,"Denied In Part",null,"",399]
["Provincial","QC","Santé et services sociaux Québec","PROVINCIAL TRIPS",26,"Released In Full",null,"",400]
["Provincial","SK","Ministry of Education","PROVINCIAL TRIPS",27,"Denied In Full",null,"",401]
["Provincial","SK","Ministry of Education","PROVINCIAL REQUESTS",32,"Denied In Part",null,"",402]
["Provincial","SK","Ministry of Education","PROVINCIAL SPECIFIC",53,"Released In Full",null,"",403]
["Provincial","SK","Ministry of Education","PROVINCIAL LEAVE",24,"Released In Full",null,"",404]
["Provincial","SK","Ministry of Education","PROVINCIAL REFUGEES",9,"Fee Estimate",127.5,"",405]
["Provincial","SK","Ministry of Health","PROVINCIAL TRIPS",72,"Denied In Part",null,"30 days",406]
["Provincial","SK","Ministry of Health","PROVINCIAL LEAVE",21,"Released In Full",null,"",407]
["Provincial","SK","Ministry of Health","PROVINCIAL REQUESTS",80,"Denied In Part",null,"30 days",408]
["Provincial","SK","Ministry of Health","PROVINCIAL SPECIFIC",6,"Fee Estimate",1360,"",409]
["Provincial","SK","Ministry of Health","PROVINCIAL HEALTH CARDS",20,"Released In Full",null,"",410]
["Provincial","SK","Ministry of Justice","PROVINCIAL LEAVE",25,"Released In Full",null,"",411]
["Provincial","SK","Ministry of Justice","PROVINCIAL JAIL BIRTHS",24,"Released In Full",null,"",412]
["Provincial","SK","Ministry of Justice","PROVINCIAL REQUESTS",63,"Denied In Part",null,"30 days",413]
["Provincial","SK","Ministry of Justice","PROVINCIAL TRIPS",38,"Released In Full",null,"",414]
["Provincial","SK","Ministry of Justice","PROVINCIAL SPECIFIC",null,"Removed From Audit",null,"",415]
["Provincial","YK","Department of Justice","PROVINCIAL REQUESTS",74,"Released In Full",null,"",416]
["Provincial","YK","Department of Justice","PROVINCIAL LEAVE",62,"Released In Full",null,"",417]
["Provincial","YK","Department of Justice","PROVINCIAL JAIL BIRTHS",17,"Released In Full",null,"",418]
["Provincial","YK","Department of Justice","PROVINCIAL TRIPS",22,"No Records",null,"30 days",419]
["Provincial","YK","Department of Justice","PROVINCIAL SPECIFIC",4,"Denied In Full",null,"",420]
["Provincial","YK","Education","PROVINCIAL LEAVE",62,"Released In Full",null,"",421]
["Provincial","YK","Education","PROVINCIAL TRIPS",20,"No Records",null,"30 days",422]
["Provincial","YK","Education","PROVINCIAL SPECIFIC",17,"Denied In Full",null,"",423]
["Provincial","YK","Education","PROVINCIAL REQUESTS",74,"Released In Full",null,"",424]
["Provincial","YK","Education","PROVINCIAL REFUGEES",64,"Released In Full",null,"30 days",425]
["Provincial","YK","Health and Social Services","PROVINCIAL LEAVE",32,"Released In Full",null,"",426]
["Provincial","YK","Health and Social Services","PROVINCIAL REQUESTS",74,"Released In Full",null,"30 days",427]
["Provincial","YK","Health and Social Services","PROVINCIAL TRIPS",22,"Denied In Full",null,"30 days",428]
["Provincial","YK","Health and Social Services","PROVINCIAL HEALTH CARDS",28,"No Records",null,"",429]
["Provincial","YK","Health and Social Services","PROVINCIAL SPECIFIC",53,"No Records",null,"30 days",430]

{"sheet":"Table11_DisclosureGrade","index":7,"n_rows":34,"n_cols":5,"rows_kept":34,"cut":false,"hidden":false,"merged":[]}
["Province","Level","Government body","GRADE","\"No records\" requests"]
["Fed","Federal","Federal government","F",8]
["AB","Municipal","City of Calgary","A",1]
["AB","Municipal","City of Edmonton","A",1]
["BC","Municipal","City of Victoria","A",0]
["MB","Municipal","City of Winnipeg","A",0]
["NB","Municipal","City of Fredericton","A",1]
["NB","Municipal","City of Moncton","A",1]
["NB","Municipal","City of Saint John","A",2]
["NS","Municipal","Halifax Regional Municipality","A",1]
["PE","Municipal","City of Charlottetown","A",1]
["BC","Municipal","City of Vancouver","B",1]
["NL","Municipal","City of St. John's","B",0]
["ON","Municipal","City of Ottawa","B",0]
["SK","Municipal","City of Regina","B",1]
["SK","Municipal","City of Saskatoon","B",1]
["ON","Municipal","City of Toronto","C",2]
["QC","Municipal","Ville de Montréal","C",1]
["QC","Municipal","Ville de Québec","C",0]
["ON","Municipal","City of Hamilton","D",2]
["ON","Municipal","City of Windsor","F",0]
["MB","Provincial","Manitoba government","A",1]
["NL","Provincial","Nfld and Labrador government","A",2]
["NT","Provincial","NWT government","A",3]
["PE","Provincial","PE government","A",1]
["BC","Provincial","BC government","B",0]
["NB","Provincial","New Brunswick government","B",1]
["NS","Provincial","Nova Scotia government","B",3]
["NU","Provincial","Nunavut government","B",2]
["SK","Provincial","Saskatchewan government","C",0]
["YK","Provincial","Yukon government","C",4]
["AB","Provincial","Alberta government","D",1]
["ON","Provincial","Ontario government","D",2]
["QC","Provincial","Quebec government","D",2]

{"sheet":"TableF1_federalsection_time","index":8,"n_rows":28,"n_cols":7,"rows_kept":28,"cut":false,"hidden":false,"merged":[]}
["Institution","Total requests filed","Within 30 days with records","Within 30 days/no records","More than 30 days","More than 60 days","No decision by audit close"]
["Communications Security Establishment",5,3,null,1,1,0]
["Fisheries and Oceans Canada",5,3,null,1,1,0]
["Parks Canada",5,3,1,0,1,0]
["Public Services and Procurement Canada",4,3,1,0,0,0]
["Shared Services Canada",5,3,1,0,0,1]
["Canadian Broadcasting Corporation",5,2,1,1,1,0]
["Department of Finance Canada",5,2,2,0,1,0]
["Canada Revenue Agency",5,1,null,2,2,0]
["Agriculture and Agri-Food Canada",5,1,null,1,2,1]
["Immigration, Refugees and Citizenship Canada",5,1,null,0,2,2]
["Indigenous and Northern Affairs Canada",5,1,1,0,1,2]
["Canadian Security Intelligence Service",5,0,null,4,1,0]
["Via Rail Canada",5,0,null,2,3,0]
["Employment and Social Development Canada",5,0,null,2,1,2]
["Transport Canada",5,0,null,2,0,3]
["Canada Post Corporation",5,0,1,1,3,0]
["Public Service Commission",1,0,null,1,0,0]
["Canada Border Services Agency",5,0,null,1,0,4]
["Global Affairs Canada",5,0,null,0,3,2]
["Privy Council Office",5,0,null,0,3,2]
["Environment and Climate Change Canada",5,0,null,0,2,3]
["Correctional Service Canada",4,0,null,0,1,3]
["Health Canada",5,0,null,0,1,4]
["Department of National Defence",5,0,null,0,0,5]
["Royal Canadian Mounted Police",5,0,null,0,0,5]
[]
["Totals",119,23,8,19,30,39]

{"sheet":"TableF2_federalsectiondisclosur","index":9,"n_rows":28,"n_cols":7,"rows_kept":28,"cut":false,"hidden":false,"merged":[]}
["Level","Institution","1Released in Full/Publicly available","2Denied in Part","3Denied in Full","6No Records","No decision by audit close"]
["Federal","Fisheries and Oceans Canada",4,null,1]
["Federal","Parks Canada",2,2,null,1]
["Federal","Public Services and Procurement Canada",2,1,null,1]
["Federal","Transport Canada",2,null,null,null,3]
["Federal","Via Rail Canada",1,4]
["Federal","Canada Revenue Agency",1,4]
["Federal","Agriculture and Agri-Food Canada",1,3,null,null,1]
["Federal","Canadian Broadcasting Corporation",1,3,null,1]
["Federal","Shared Services Canada",1,2,null,1,1]
["Federal","Employment and Social Development Canada",1,2,null,null,2]
["Federal","Department of Finance Canada",1,2,null,2]
["Federal","Environment and Climate Change Canada",1,1,null,null,3]
["Federal","Health Canada",1,null,null,null,4]
["Federal","Public Service Commission*",1]
["Federal","Communications Security Establishment",null,5]
["Federal","Canadian Security Intelligence Service",null,3,2]
["Federal","Privy Council Office",null,3,null,null,2]
["Federal","Immigration, Refugees and Citizenship Canada",null,3,null,null,2]
["Federal","Global Affairs Canada",null,3,null,null,2]
["Federal","Indigenous and Northern Affairs Canada",null,2,null,1,2]
["Federal","Canada Post Corporation",null,1,3,1]
["Federal","Correctional Service Canada",null,1,null,null,3]
["Federal","Canada Border Services Agency",null,1,null,null,4]
["Federal","Royal Canadian Mounted Police",null,null,null,null,5]
["Federal","Department of National Defence",null,null,null,null,5]
[]
[null,"Totals",20,46,6,8,39]

{"sheet":"TableF3_FedSect.ReqCompare","index":10,"n_rows":10,"n_cols":4,"rows_kept":10,"cut":false,"hidden":false,"merged":[]}
["Days to final decision","Federal","Municipal","Provincial"]
["10 days or fewer",4.1666666666666664E-2,0.36842105263157893,7.8947368421052627E-2]
["11 to 20 days",4.1666666666666664E-2,0.26315789473684209,0.31578947368421051]
["21 to 30 days",0.25,0.31578947368421051,0.18421052631578946]
["31 to 45 days",4.1666666666666664E-2,0,0.23684210526315788]
["46 to 60 days",0.125,0,0]
["More than 60 days",0.20833333333333334,5.2631578947368418E-2,0.13157894736842105]
["No decision by audit close",0.29166666666666669,0,5.2631578947368418E-2]
[]
["Totals",1,1,1]

{"sheet":"Tables8&9_DataVsDocs","index":11,"n_rows":8,"n_cols":16,"rows_kept":8,"cut":false,"hidden":false,"merged":[]}
["Days to decision groups","DATA","DOCS","VARIOUS","DATA","DOCS","VARIOUS",null,null,"Final decision","DATA","DOCS","VARIOUS","DATA","DOCS","VARIOUS"]
["10 days or fewer",11,57,11,0.10679611650485436,0.24890829694323144,0.13924050632911392,null,null,"Released in Full/Publicly available",38,122,26,0.36893203883495146,0.52586206896551724,0.32911392405063289]
["11 to 20 days",19,35,11,0.18446601941747573,0.15283842794759825,0.13924050632911392,null,null,"Denied in Part",45,30,14,0.43689320388349512,0.12931034482758622,0.17721518987341772]
["21 to 30 days",23,63,26,0.22330097087378642,0.27510917030567683,0.32911392405063289,null,null,"Denied in Full",2,16,5,1.9417475728155338E-2,6.8965517241379309E-2,6.3291139240506333E-2]
["31 to 45 days",18,22,6,0.17475728155339806,9.606986899563319E-2,7.5949367088607597E-2,null,null,"Fee Estimate",5,14,7,4.8543689320388349E-2,6.0344827586206899E-2,8.8607594936708861E-2]
["46 to 60 days",4,8,4,3.8834951456310676E-2,3.4934497816593885E-2,5.0632911392405063E-2,null,null,"No Records",null,29,15,0,0.125,0.189873417721519]
["More than 60 days",15,23,9,0.14563106796116504,0.10043668122270742,0.11392405063291139,null,null,"No decision by audit close",13,21,12,0.12621359223300971,9.0517241379310345E-2,0.15189873417721519]
["No decision by audit close",13,21,12,0.12621359223300971,9.1703056768558958E-2,0.15189873417721519]

{"sheet":"TableF4_letterscompare","index":12,"n_rows":10,"n_cols":5,"rows_kept":10,"cut":false,"hidden":false,"merged":[]}
["Days to decision groups","Federal","Municipal","Federal","Municipal"]
["10 days or fewer",null,8,{"$f":"B2/B$10","v":0},{"$f":"C2/C$10","v":0.42105263157894735}]
["11 to 20 days",3,2,{"$f":"B3/B$10","v":0.125},{"$f":"C3/C$10","v":0.10526315789473684}]
["21 to 30 days",2,3,8.3333333333333329E-2,0.15789473684210525]
["31 to 45 days",1,1,4.1666666666666664E-2,5.2631578947368418E-2]
["46 to 60 days",null,4,0,0.21052631578947367]
["More than 60 days",8,1,0.33333333333333331,5.2631578947368418E-2]
["No decision by audit close",10,null,0.41666666666666669,0]
[]
["Totals",{"$f":"SUM(B2:B9)","v":24},{"$f":"SUM(C2:C9)","v":19},1,1]

{"sheet":"Table10_Fees>$50","index":13,"n_rows":19,"n_cols":5,"rows_kept":19,"cut":false,"hidden":false,"merged":[]}
["Level","Province","Government body","Request","Fee"]
["Municipal","ON","City of Windsor","MUNICIPAL REQUESTS",1872.6]
["Provincial","SK","Ministry of Health","PROVINCIAL SPECIFIC",1360]
["Provincial","AB","Alberta Justice and Solicitor General","PROVINCIAL SPECIFIC",804]
["Provincial","MB","Manitoba Education and Training","PROVINCIAL REFUGEES",645]
["Provincial","PE","Education, Early Learning and Culture","PROVINCIAL REFUGEES",554]
["Municipal","NL","City of St. John's","MUNICIPAL SPECIFIC",500]
["Municipal","SK","City of Regina","MUNICIPAL CORRESPONDENCE",338]
["Provincial","ON","Ontario Ministry of Education","PROVINCIAL REFUGEES",330]
["Provincial","AB","Alberta Justice and Solicitor General","PROVINCIAL REQUESTS",311.5]
["Provincial","NS","Nova Scotia Department of Justice","PROVINCIAL SPECIFIC",210]
["Municipal","QC","Ville de Québec","MUNICIPAL SPECIFIC",189.36]
["Provincial","SK","Ministry of Education","PROVINCIAL REFUGEES",127.5]
["Provincial","ON","Ontario Ministry of the Attorney General","PROVINCIAL REQUESTS",125]
["Municipal","ON","City of Windsor","MUNICIPAL SPECIFIC",106.19]
["Municipal","ON","City of Hamilton","MUNICIPAL CORRESPONDENCE",87]
["Provincial","ON","Ontario Ministry of Health and Long-Term Care","PROVINCIAL TRIPS",60]
["Municipal","BC","City of Vancouver","MUNICIPAL CORRESPONDENCE",60]
["Municipal","SK","City of Saskatoon","MUNICIPAL SPECIFIC",53.16]